Cogmind - Beta 16 @@@ ROGUE MODE // 2025.12.20 @ 00:34:59 Player: Zaros426 Result: Destroyed by AG-DUY(R) with Subdweller Beam Cannon Performance ------------- Evolutions (0) 0 Regions Visited (3) 600 Robots Destroyed (64) 320 Value Destroyed (1234) 1234 Prototype IDs (0) 0 Alien Tech Used (0) 0 Bonus (120) 120 TOTAL SCORE: 2274 Bonus ------- Follower Combat Kills 120 Cogmind --------- Core Integrity 0/250 Matter 257/300 Energy 130/200 System Corruption 0% Temperature Cool (9) Movement Treading (320) Ox2 Location -10/Subcaves Parts ------- > --- POWER (1) -------- Subdweller Power Source > --- PROPULSION (2) --- Light Treads Subdweller Monowheel > --- UTILITY (2) ------ High-capacity Storage Unit Makeshift Light Armor Plating > --- WEAPON (2) ------- Subdweller Laser Battle Cannon > --- INVENTORY (20) --- Subdweller Monowheel Large Storage Unit High-capacity Battery (250) High-capacity Matter Pod (200) Structural Scanner Machine Analyzer Seismic Detector Hacking Suite EM Pulse Gun EM Pulse Gun Subdweller Laser Battle Rifle Grenade Launcher Datajack Mining Laser Hammer Hammer Peak State ------------ > --- POWER ------------ Subdweller Power Source > --- PROPULSION ------- Light Treads Subdweller Monowheel > --- UTILITY ---------- High-capacity Storage Unit Makeshift Light Armor Plating > --- WEAPON ----------- Subdweller Laser Barrage Gun > --- INVENTORY -------- Subdweller Monowheel Large Storage Unit High-capacity Battery High-capacity Matter Pod Structural Scanner Machine Analyzer Seismic Detector Hacking Suite EM Pulse Gun EM Pulse Gun Subdweller Laser Battle Rifle Battle Cannon Grenade Launcher Datajack Mining Laser Hammer Hammer [Rating: 17] Favorites ----------- Power Ion Engine Engine Ion Engine Propulsion Light Treads Treads Light Treads Wheel Subdweller Monowheel Utility Light Armor Plating Device Structural Scanner Storage High-capacity Storage Unit Protection Light Armor Plating Weapon Assault Rifle Energy Gun Subdweller Laser Ballistic Gun Assault Rifle Ballistic Cannon Battle Cannon Launcher Grenade Launcher Special Weapon Mining Laser Impact Weapon Hammer Build | -11 -10 -10 -10 ------- Run | Yrd Mat Min Sub Slots Evolved . | . . . . Power . | . . . . Propulsion . | . . . . Utility . | . . . . Weapon . | . . . . Parts Attached 34 | 7 11 6 10 Power 5 | 1 1 1 2 Engine 5 | 1 1 1 2 Core . | . . . . Reactor . | . . . . Propulsion 7 | 2 2 1 2 Treads 6 | 2 2 1 1 Leg . | . . . . Wheel 1 | . . . 1 Hover . | . . . . Flight . | . . . . Utility 8 | 2 3 2 1 Device 2 | 1 1 . . Storage 3 | 1 1 1 . Processor . | . . . . Hackware . | . . . . Protection 3 | . 1 1 1 Artifact . | . . . . Weapon 14 | 2 5 2 5 Energy Gun 1 | . . . 1 Energy Cannon . | . . . . Ballistic Gun 6 | 2 . 1 3 Ballistic Cannon 1 | . . . 1 Launcher 3 | . 3 . . Special Weapon 1 | . 1 . . Impact Weapon 2 | . 1 1 . Slashing Weapon . | . . . . Piercing Weapon . | . . . . Special Melee Weapon . | . . . . Unidentified Prototypes . | . . . . Parts Lost 9 | . 2 3 4 Power . | . . . . Propulsion 3 | . . 1 2 Utility 3 | . 1 1 1 Weapon 3 | . 1 1 1 Highest Loss Streak 3 | . 1 2 3 To Critical Strikes . | . . . . Average Backups 14 | 1 11 16 18 Power . | . . 1 . Propulsion 1 | . 1 1 . Utility 6 | . 4 7 7 Weapon 5 | 1 3 5 8 Tool/Special . | . . . . Unused Backups 12 | . 2 . 10 Power . | . . . . Propulsion 1 | . . . 1 Utility 6 | . 1 . 5 Weapon 4 | . 1 . 3 Tool/Special 1 | . . . 1 Average Slot Usage (%) 99 | . 99 99 100 Engine 14 | . 14 14 14 Treads 27 | . 28 27 27 Device 2 | . 6 . . Storage 14 | . 14 14 14 Protection 11 | . 7 13 14 Energy Gun 4 | . . . 13 Ballistic Gun 15 | . 17 12 14 Launcher 3 | . 8 1 . Impact Weapon 4 | . 1 14 . Peak Build Rating 17 | 7 9 9 17 Average Rating 9 | 6 7 8 12 On Entrance 6 | . 7 8 9 Avg Prop Armor Cover (%) . | . . . . Naked Turns . | . . . . Heaviest Build 55 | 15 34 52 55 Greatest Support 40 | 40 40 40 40 Greatest Overweight (x) 2 | . 1 2 1 Average Overweight (x) . | . . . 1 Largest Inventory Capacity 20 | 8 15 20 20 Average Capacity 17 | 7 14 19 20 Most Carried 20 | 3 15 18 20 Average Carried 14 | 1 12 16 18 Final Capacity 20 | 8 15 20 20 Final Carried 17 | 3 15 16 17 Class Distribution -------------------- 100% | Mutant Dominant Class ---------------- Mutant | -10/Materials Mutant | -10/Mines Mutant | -10/Subcaves Resources | -11 -10 -10 -10 ----------- Run | Yrd Mat Min Sub Matter Collected 1528 | 378 770 183 197 Remotely . | . . . . Salvage Created 2035 | 302 920 291 522 Parts 125 | 23 59 12 31 Haulers Intercepted 2 | . 2 . . Recyclers Shooed 2 | . 2 . . Parts Field Recycled . | . . . . Retrieved Matter . | . . . . Parts Self-Destructed 23 | . . . 23 Prevented . | . . . . Parts Restored . | . . . . Kills | -11 -10 -10 -10 ------- Run | Yrd Mat Min Sub Combat Hostiles Destroyed 32 | . 17 5 10 Melee 4 | . . 4 . Guns 16 | . 6 . 10 AOE 11 | . 11 . . Classes Destroyed 12 | 2 8 . 2 Worker 7 | . 5 2 . Builder 3 | . 2 1 . Tunneler 10 | 9 . 1 . Hauler 2 | . 2 . . Recycler 4 | 1 3 . . Mechanic 1 | . 1 . . Operator 2 | . 2 . . Watcher 3 | . 3 . . Swarmer 9 | . 8 . 1 Grunt 16 | . 9 5 2 Sentry 1 | . . . 1 Subdweller 6 | . . . 6 Best Kill Streak 5 | 4 5 2 2 Combat Bots Only 3 | . 3 2 2 Max Kills in Single Turn 3 | 1 3 1 1 Gunslinging . | . . . . Exploded 3 | . 3 . . Melee 1 | . . 1 . Uniques/NPCs Destroyed . | . . . . Combat | -11 -10 -10 -10 -------- Run | Yrd Mat Min Sub Hostile Shots Fired 154 | . 60 45 49 Missed 44 | . 13 12 19 Hits 110 | . 47 33 30 Projectile 110 | . 47 33 30 AOE 2 | . . . 2 Critical Strikes 4 | . . 2 2 Damage Taken 1832 | . 546 506 780 Core 260 | . 57 52 151 Absorbed by Shields . | . . . . Core Remaining (%) 100 | 100 . . . Volleys Fired 135 | 18 74 3 40 Largest 2 | 2 2 2 2 Hottest 100 | 40 100 60 88 Shots Fired 254 | 36 132 6 80 Gun 237 | 36 117 4 80 Cannon . | . . . . Launcher 15 | . 13 2 . Special 2 | . 2 . . Kinetic 197 | 36 117 4 40 Thermal 42 | . 2 . 40 Explosive 15 | . 13 2 . Electromagnetic . | . . . . Robot Hit Streak 27 | 7 21 7 27 Robot Miss Streak 4 | 2 4 . 2 Penetration Max . | . . . . Secondary Targets 1 | . 1 . . Max Gunslinging Chain 1 | . 1 . . Shots Hit Robots 188 | 22 84 20 62 Core Hits 90 | 11 50 8 21 Critical Kills 2 | . . 1 1 Critical Parts Destroyed 5 | . 1 4 . Critical Strikes 8 | . 1 5 2 Destroy 3 | . 1 . 2 Smash 5 | . . 5 . Melee Attacks 24 | . 6 18 . Impact 24 | . 6 18 . Slashing . | . . . . Piercing . | . . . . Sneak Attacks 4 | . 2 2 . Combat Hostiles . | . . . . Follow-up Attacks 2 | . . 2 . Damage Inflicted 3824 | 321 1795 604 1104 Guns 2473 | 321 1011 37 1104 Cannons . | . . . . Explosions 749 | . 670 79 . Melee 602 | . 114 488 . Ramming . | . . . . Kinetic 1872 | 321 1011 37 503 Thermal 601 | . . . 601 Explosive 749 | . 670 79 . Electromagnetic . | . . . . Impact 602 | . 114 488 . Slashing . | . . . . Piercing . | . . . . Highest Corruption . | . . . . Average Corruption . | . . . . Corruption Purged . | . . . . Corruption Blocked . | . . . . Overload Shots . | . . . . Overflow Damage 283 | . 115 168 . Projectiles . | . . . . Explosions 56 | . 56 . . Melee 227 | . 59 168 . Knockbacks 4 | . 1 3 . Impact 4 | . 1 3 . Kinetic . | . . . . Secondary . | . . . . Self-Inflicted Damage 70 | . . 70 . Shots 2 | . . 2 . Rammed . | . . . . Targets Rammed . | . . . . Kicked . | . . . . Crushed . | . . . . Highest Temperature 40 | . 32 23 40 Average Temperature 10 | . 9 12 11 Received Heat Transfer 513 | . 138 273 102 Siege Activations . | . . . . Martial Activations . | . . . . Shielding Activations . | . . . . Robots Disrupted . | . . . . Combat Hostiles . | . . . . Robots Corrupted 3 | . . 3 . Combat Hostiles 1 | . . 1 . Parts Fried 7 | . 1 6 . Impact Corruptions 9 | . 2 7 . Robots Melted . | . . . . Combat Hostiles . | . . . . Parts Melted 1 | . . . 1 Heat Transferred 725 | . . . 725 Parts Sabotaged . | . . . . Parts Stolen . | . . . . Parts Stripped . | . . . . Power Chain Reactions . | . . . . Alert | -11 -10 -10 -10 ------- Run | Yrd Mat Min Sub Maximum Alert Level 1 | . 1 . . Low Security (%) 97 | 100 95 100 . Level 1 2 | . 4 . . Level 2 . | . . . . Level 3 . | . . . . Level 4 . | . . . . Level 5 . | . . . . High Security . | . . . . Max Security . | . . . . Peak Influence 274 | 20 274 158 . Initial 102 | . . 102 . Average 64 | 2 84 46 . Influence Increases 1180 | 50 750 262 118 Destroy 0b10 Robot/C 600 | . 340 160 100 Destroy 0b10 Robot/NC 160 | 50 90 20 . Destroy Leader 140 | . 90 40 10 Allied During Kill 24 | . . 16 8 Successful Hack 31 | . 31 . . Select Force Hacks 60 | . 60 . . Disable Machine 75 | . 60 15 . Destroy Structure 75 | . 64 11 . Lose Combat Pursuer 15 | . 15 . . Influence Decreases 1180 | 50 488 524 118 Entered New Map 160 | . . 160 . Time Decay 993 | 50 478 347 118 Lost Part 27 | . 10 17 . Squads Dispatched 5 | . 5 . . Investigation 3 | . 3 . . Extermination . | . . . . Reinforcement 2 | . 2 . . Assault . | . . . . Garrison . | . . . . Intercept . | . . . . Searches Triggered . | . . . . Construction Impeded . | . . . . Haulers Reinforced . | . . . . Active Scanning Responses . | . . . . Cargo Convoy Interrupts . | . . . . Stealth | -11 -10 -10 -10 --------- Run | Yrd Mat Min Sub Distress Signals 3 | . 3 . . Communications Jammed . | . . . . Distress Signals . | . . . . Times Spotted 59 | . 32 13 14 Peak Tracking Total 4 | . 4 4 3 Tactical Retreats 1 | . 1 . . Traps | -11 -10 -10 -10 ------- Run | Yrd Mat Min Sub Traps Triggered 5 | . 4 . 1 Indirectly . | . . . . Trap Hack Attempts . | . . . . Triggered . | . . . . Disarmed . | . . . . Reprogrammed . | . . . . Reused . | . . . . Traps Extracted . | . . . . Installed . | . . . . Triggered . | . . . . Machines | -11 -10 -10 -10 ---------- Run | Yrd Mat Min Sub Machines Disabled 6 | . 5 1 . Max in Single Turn 1 | . 1 1 . Machines Repaired . | . . . . Machines Dismantled . | . . . . Machines Sabotaged . | . . . . Overloaded Fab Kills . | . . . . Hacking | -11 -10 -10 -10 --------- Run | Yrd Mat Min Sub Machines Accessed 9 | . 8 1 . Terminals 7 | . 6 1 . Fabricators . | . . . . Repair Stations . | . . . . Recycling Units 2 | . 2 . . Scanalyzers . | . . . . Garrison Access . | . . . . Total Hacks 30 | . 27 3 . Successful 16 | . 14 2 . Failed 14 | . 13 1 . Catastrophic . | . . . . Database Lockouts . | . . . . Manual 19 | . 19 . . Terminals 28 | . 25 3 . Fabricators . | . . . . Repair Stations . | . . . . Recycling Units 2 | . 2 . . Scanalyzers . | . . . . Garrison Access . | . . . . Terminal Hacks 9 | . 7 2 . Record 2 | . . 2 . Robot Analysis 2 | . 2 . . Locate Traps 2 | . 2 . . Recall Investigation 1 | . 1 . . Zone Layout 2 | . 2 . . Fabricator Hacks . | . . . . Repair Station Hacks . | . . . . Recycling Unit Hacks . | . . . . Scanalyzer . | . . . . Garrison Access Hacks . | . . . . Unauthorized Hacks 7 | . 7 . . Terminals 5 | . 5 . . Skim 5 | . 5 . . Fabricators . | . . . . Repair Stations . | . . . . Recycling Units 2 | . 2 . . Tunnel 2 | . 2 . . Scanalyzers . | . . . . Garrison Access . | . . . . Data Cores Recovered . | . . . . Used . | . . . . Hacking Detections 7 | . 6 1 . Full Trace Events . | . . . . Feedback Events . | . . . . Feedback Blocked . | . . . . Robot Schematics Acquired . | . . . . Robots Built . | . . . . Authchips . | . . . . Time . | . . . . Total Robot Build Rating . | . . . . Part Schematics Acquired . | . . . . Parts Built . | . . . . Authchips . | . . . . Time . | . . . . Total Part Build Rating . | . . . . Part Studies Acquired . | . . . . Parts Repaired . | . . . . Time . | . . . . Parts Recycled . | . . . . Recycled Matter . | . . . . Retrieved Matter . | . . . . Retrieved Components . | . . . . Parts Scanalyzed . | . . . . Part Schematics Acquired . | . . . . Parts Damaged . | . . . . Bothacking | -11 -10 -10 -10 ------------ Run | Yrd Mat Min Sub Used RIF Installer . | . . . . Robots Hacked . | . . . . Non-combat . | . . . . Combat . | . . . . Robot Hacks Applied . | . . . . Relay Couplers Released . | . . . . Fabnet Peak Effective % . | . . . . Robots Rewired . | . . . . Allies Hacked . | . . . . Hacks Repelled . | . . . . Allies | -11 -10 -10 -10 -------- Run | Yrd Mat Min Sub Total Allies 3 | . . 3 . Largest Group 3 | . . 3 3 Highest-Rated Group 40 | . . 40 40 Highest-Rated Ally 16 | . . 16 16 Total Orders . | . . . . Ally Attacks 67 | . . 32 35 Total Damage 696 | . . 298 398 Kills 7 | . . 6 1 Allies Corrupted . | . . . . Allies Melted . | . . . . Intel | -11 -10 -10 -10 ------- Run | Yrd Mat Min Sub Active Infowar (turns) 933 | 151 782 . . Structural 568 | . 568 . . Seismic 365 | 151 214 . . Robot Analysis Total 2 | . 2 . . Derelict Logs Recovered 2 | . . 1 1 Drone Launches . | . . . . Drone Recoveries . | . . . . Exploration | -11 -10 -10 -10 ------------- Run | Yrd Mat Min Sub Turns Passed 4582 | 242 1795 1152 1393 Spaces Moved 1980 | 78 934 459 509 Core 2 | 2 . . . Treads 1978 | 76 934 459 509 Legs . | . . . . Wheels . | . . . . Hover . | . . . . Flight . | . . . . Fastest Speed 50 | 50 160 160 240 Average Speed 198 | 157 160 236 240 Slowest Speed 320 | 160 240 320 240 Overloaded Moves . | . . . . Propulsion Burnouts . | . . . . Robots Hopped . | . . . . Potential Cave-ins . | . . . . Cave-ins Triggered . | . . . . Exploration Rate (%) 55 | 4 98 83 35 Regions Visited 3 Branch Regions 2 Pre-discovered Areas 4 | . 4 . . Known Exits Taken 2 | . 1 1 . Unknown Exits Taken 1 | 1 . . . Scrap Searched 5 | . . 1 4 Spaces Dug 4 | . 4 . . Terrain Destroyed 81 | . 64 17 . Melee 2 | . 2 . . Projectile 2 | . 2 . . AOE 77 | . 60 17 . Terrain Rammed . | . . . . Walls Destroyed . | . . . . Machines Disabled . | . . . . Actions | -11 -10 -10 -10 --------- Run | Yrd Mat Min Sub Total 2334 | 158 1083 492 601 Wait 113 | 53 27 4 29 Move 1977 | 77 933 458 509 Hop . | . . . . Pick Up 33 | 3 19 3 8 Fast Attach 11 | 7 2 1 1 Attach 8 | . 2 2 4 Detach . | . . . . Swap 23 | . 13 5 5 Drop 13 | . 7 1 5 Fire 135 | 18 74 3 40 Melee 21 | . 6 15 . Ram . | . . . . Kick . | . . . . Crush . | . . . . Escape Stasis . | . . . . Rewire . | . . . . Trap . | . . . . Miscellaneous . | . . . . Route ------- -11/Scrapyard -10/Materials (discovered 5 exits: *Mat x3 / *Min / *Sub) -10/Mines (discovered 4 exits: *Mat x2 / [*Exi] / *Sub) -10/Subcaves History --------- Turn | Location | Event 13 | -11/Scrapyard | Discovered new exit (range 14) 243 | -11/Scrapyard | Entered Materials 300 | -10/Materials | Build established: Mutant 617 | -10/Materials | Discovered new exit (range 15) 834 | -10/Materials | Discovered new exit (range 15) 1064 | -10/Materials | Discovered new exit (range 3) 1375 | -10/Materials | Discovered new exit (range 10) 1461 | -10/Materials | Learned location of Recycling (-7) 1591 | -10/Materials | Learned 4 Recycling zone layouts 1639 | -10/Materials | Identified exit to Materials 1731 | -10/Materials | Identified exit to Mines 1731 | -10/Materials | Identified exit to Subcaves 1762 | -10/Materials | Learned Storage emergency access door positions 1802 | -10/Materials | Loaded intel: 8 terminal locations 1851 | -10/Materials | Learned location of 1 exit from Recycling 2038 | -10/Materials | Entered Mines 2050 | -10/Mines | Met a Derelict bent on vengeance 2067 | -10/Mines | Found DCF Scrap (12 items) 2113 | -10/Mines | Learned location of 1 exit from Materials 2237 | -10/Mines | Assisted by bots powering up and referring to "LRC-V3" 2273 | -10/Mines | Deemed a non-threat by the Exiles lab entrance 2273 | -10/Mines | Discovered new exit (range 5) 2983 | -10/Mines | Discovered exit to Materials (range 5) 3138 | -10/Mines | Assembled infested the area 3157 | -10/Mines | Discovered exit to Subcaves (range 13) 3190 | -10/Mines | Entered Subcaves 3190 | -10/Subcaves | Accompanied by 3 allies 3191 | -10/Subcaves | Approached by a straggling Scientist 3232 | -10/Subcaves | Shifting Twisted Machinery released Sub. Laser 3494 | -10/Subcaves | Core integrity fell below 50% 3518 | -10/Subcaves | Lost 4 allies 3669 | -10/Subcaves | Shifting Twisted Machinery released Barrage Gun 3681 | -10/Subcaves | Shifting Twisted Machinery released Sub. Optics 3875 | -10/Subcaves | Learned Materials trap positions 4553 | -10/Subcaves | Visited 4L-MR0's lab 4572 | -10/Subcaves | Core integrity fell below 20% 4583 | -10/Subcaves | Destroyed by AG-DUY(R) with Subdweller Beam Cannon Last Messages --------------- 04235_ Flight Unit fries itself beyond repair. 04235_ Lgt. Ion Engine fries itself beyond repair. 04244_ Acquired 4 matter. 04400_ AD-8SC(R) destroyed. 04412_ 1N-N01(R) destroyed. 04431_ Acquired 24 matter. 04435_ Acquired 4 matter. 04437_ F8-YS8(R) destroyed. 04438_ Acquired 4 matter. 04444_ Dropped Ion Engine. 04445_ Acquired Sub. Power Source. 04451_ Acquired Sub. Laser. 04455_ Acquired 10 matter. 04561_ Triggered Piercing Trap. 04561_ Spikes shoot up from the floor. 04561_ Critical hit (Impale). 04568_ WK-DT6(R) destroyed. 04571_ Lgt. Armor Plating destroyed. 04573_ Lgt. Treads destroyed. 04581_ Barrage Gun destroyed. Map ----- +----------------------------------------------------+ | | | | | | | | | | | | | | | | | | | | | | | | | | | ?????????????????????????????????????????????????? | | ?????????????????????????????????????????????????? | | ?????????????????????????????????????????????????? | | ?????????????????????????????????????????????????? | | ?????????????????????#####???????????????????????? | | ????????????????????##<< #??#######??????????????? | | ????????????????????#< <"##" "=#??????????????? | | ????????????????????# < <"# ##???????????????? | | ????????????????????#<< < / "X"""???????????????? | | ????????????????????# !"#"""""""???????????????? | | ????????????????????#<<<*##??####????????????????? | | ????????????????????#<